bitfinex-derivatives/quotes_BTCF0:USTF0_20241203
["timestamp","ask_amount","ask_price","bid_price","bid_amount"]
[1733247420436,0.052429,95334.0,95299.0,0.052447]
[1733247420437,0.0026,95313.0,95299.0,0.154]
[1733247420641,0.2352,95363.0,95299.0,0.154]
[1733247420642,0.3608,95337.0,95336.0,0.052427]
[1733247420839,0.3608,95337.0,95336.0,0.206427]
[1733247421043,0.0309,95349.0,95348.0,0.05242]
[1733247421234,0.3608,95368.0,95348.0,0.154]
[1733247421433,0.3608,95368.0,95352.0,0.3608]
[1733247421434,0.00012405,95353.0,95352.0,0.3608]
[1733247421744,0.00012405,95353.0,95352.0,0.39704]
[1733247422541,0.00512405,95353.0,95352.0,0.39804]
[1733247422741,0.00512405,95353.0,95352.0,0.78974904]
[1733247423046,0.01312405,95353.0,95352.0,0.42994904]
[1733247423250,0.01312405,95353.0,95352.0,0.18686904]
[1733247423545,0.01312405,95353.0,95352.0,0.208378]
[1733247423937,0.01312405,95353.0,95352.0,0.415218]
[1733247424145,0.01312405,95353.0,95352.0,0.569178]
[1733247424343,0.3608,95368.0,95352.0,0.54649467]
[1733247424539,0.3608,95368.0,95366.0,0.052411]
[1733247424739,0.3608,95368.0,95367.0,0.15396]
[1733247424740,0.3108,95368.0,95367.0,0.15396]
[1733247425339,0.31087964,95368.0,95367.0,0.15396]
[1733247425936,0.31087964,95368.0,95367.0,0.15592]
[1733247426539,0.31087964,95368.0,95367.0,0.15392]
[1733247427345,7.964e-05,95368.0,95367.0,0.15392]
[1733247428043,7.964e-05,95368.0,95367.0,0.005]
[1733247428352,7.964e-05,95368.0,95367.0,0.15892]
[1733247428540,7.964e-05,95368.0,95367.0,0.16192]
[1733247429248,7.964e-05,95368.0,95367.0,0.005]
[1733247429451,7.964e-05,95368.0,95367.0,0.16188]
[1733247429851,7.964e-05,95368.0,95367.0,0.15688]
[1733247430148,7.964e-05,95368.0,95367.0,0.15988]
[1733247432246,7.964e-05,95368.0,95367.0,0.15688]
[1733247432557,7.964e-05,95368.0,95367.0,0.16188]
[1733247433146,7.964e-05,95368.0,95367.0,0.008]
[1733247433348,7.964e-05,95368.0,95367.0,0.16184]
[1733247433745,0.0626,95385.0,95367.0,0.16184]
[1733247434052,0.3608,95389.0,95388.0,0.052399]
[1733247434358,0.3608,95389.0,95388.0,0.20631901]
[1733247434754,0.3608,95389.0,95388.0,8.001e-05]
[1733247435660,0.415198,95389.0,95388.0,8.001e-05]
[1733247435949,0.718198,95389.0,95388.0,8.001e-05]
[1733247436154,0.052402,95383.0,95373.0,0.03006568]
[1733247436354,0.052402,95383.0,95369.0,0.15384]
[1733247436355,0.3608,95380.0,95369.0,0.15384]
[1733247436552,0.3608,95380.0,95376.0,0.052405]
[1733247436751,0.3608,95380.0,95371.0,0.15384]
[1733247436952,0.3608,95372.0,95371.0,0.206248]
[1733247437156,0.36084,95372.0,95371.0,0.206248]
[1733247437851,0.36084,95372.0,95369.0,0.18336031]
[1733247438052,0.36084,95372.0,95371.0,0.052408]
[1733247438254,0.3608,95372.0,95371.0,0.052408]
[1733247438460,0.3608,95390.0,95389.0,0.052398]
[1733247438657,8.925e-05,95393.0,95392.0,0.052396]
[1733247439656,8.925e-05,95393.0,95392.0,1.552396]
[1733247439860,8.925e-05,95393.0,95392.0,1.55251654]
[1733247440072,0.00208925,95393.0,95392.0,1.55351654]
[1733247441157,0.00208925,95393.0,95392.0,0.05351654]
[1733247441662,0.00608925,95393.0,95392.0,0.05351654]
[1733247442562,0.0301,95415.0,95392.0,0.05351654]
[1733247442563,0.0301,95415.0,95414.0,0.052384]
[1733247442866,0.0301,95415.0,95414.0,0.052424]
[1733247444162,0.0381,95415.0,95414.0,0.053424]
[1733247444660,0.0381,95415.0,95414.0,0.054424]
[1733247444862,0.0381,95415.0,95414.0,0.00204]
[1733247445764,0.0381,95415.0,95408.0,0.02982554]
[1733247445765,0.0381,95415.0,95390.0,0.16134798]
[1733247445956,0.3608,95402.0,95393.0,0.03042429]
[1733247446155,0.3608,95402.0,95396.0,0.052394]
[1733247446567,0.3608,95402.0,95393.0,0.03042429]
[1733247446763,0.3608,95402.0,95399.0,0.052392]
[1733247447253,0.3608,95402.0,95393.0,0.052395]
[1733247447254,0.052393,95399.0,95393.0,0.052395]
[1733247447458,0.052393,95398.0,95394.0,0.052395]
[1733247447662,0.6618,95402.0,95389.0,4e-05]
[1733247447858,0.6618,95402.0,95390.0,0.052397]
[1733247447859,0.3608,95393.0,95390.0,0.052397]
[1733247448554,0.3608,95393.0,95389.0,4e-05]
[1733247448863,0.00012145,95390.0,95389.0,4e-05]
[1733247449064,0.00012145,95390.0,95389.0,0.052438]
[1733247450665,0.00012145,95390.0,95389.0,0.413238]
[1733247450666,0.00212145,95390.0,95389.0,0.413238]
[1733247450864,0.003,95393.0,95389.0,0.413238]
[1733247451065,0.003,95393.0,95392.0,0.052396]
[1733247451371,0.003,95393.0,95392.0,0.206156]
[1733247451562,0.3608,95406.0,95405.0,0.052389]
[1733247451958,0.3608,95406.0,95405.0,0.052429]
[1733247453667,4.121e-05,95407.0,95405.0,4e-05]
[1733247453868,4.121e-05,95407.0,95406.0,0.052389]
[1733247454171,4.121e-05,95407.0,95406.0,0.052429]
[1733247455074,0.00704121,95407.0,95406.0,0.052429]
[1733247455456,0.00704121,95407.0,95406.0,0.053429]
[1733247455661,0.00704121,95407.0,95406.0,0.054429]
[1733247456259,0.21818279,95435.0,95414.0,0.052384]
[1733247456461,0.21818279,95436.0,95425.0,0.15874798]
[1733247456661,0.0328,95438.0,95436.0,0.052372]
[1733247456865,0.0328,95438.0,95437.0,0.15376]
[1733247457068,0.0328,95438.0,95437.0,0.1538]
[1733247457367,0.0319,95442.0,95437.0,0.1538]
[1733247457561,0.36237251,95443.0,95442.0,0.052369]
[1733247457963,0.36237251,95443.0,95442.0,0.052409]
[1733247458875,0.36237251,95443.0,95442.0,0.053409]
[1733247459170,0.36637251,95443.0,95442.0,0.08361206]
[1733247460873,0.36637251,95443.0,95442.0,0.08373225]
[1733247461068,0.00557251,95443.0,95442.0,0.08373225]
[1733247462073,0.004,95443.0,95442.0,0.23745225]
[1733247465472,0.004,95443.0,95442.0,0.08373225]
[1733247465672,0.004,95443.0,95442.0,0.23741225]
[1733247466781,0.004,95443.0,95442.0,0.08373225]
[1733247466987,0.004,95443.0,95442.0,0.23741225]
[1733247470281,0.004,95443.0,95442.0,0.08373225]
[1733247470581,0.004,95443.0,95416.0,0.36613645]
[1733247470582,0.3648,95443.0,95416.0,0.36613645]
[1733247470786,0.3608,95427.0,95419.0,0.206061]
[1733247470979,0.413177,95427.0,95420.0,0.052381]
[1733247471284,0.413177,95427.0,95421.0,0.15368]
[1733247471585,0.413177,95427.0,95422.0,0.20606]
[1733247471586,0.00012019,95426.0,95422.0,0.20606]
[1733247471786,0.00012019,95426.0,95424.0,0.052379]
[1733247471984,0.00012019,95426.0,95425.0,0.052378]
[1733247472186,0.05249819,95426.0,95421.0,7.396e-05]
[1733247472386,0.00012019,95426.0,95421.0,7.396e-05]
[1733247472685,0.05238,95422.0,95421.0,0.00307396]
[1733247473583,0.00012019,95426.0,95418.0,0.003]
[1733247473584,0.052382,95419.0,95418.0,0.003]
[1733247473788,0.052382,95418.0,95417.0,0.052383]
[1733247475179,0.054382,95418.0,95417.0,0.052383]
[1733247475591,0.002,95418.0,95417.0,0.052383]
[1733247476386,0.003,95418.0,95417.0,0.052383]
[1733247477184,0.002,95418.0,95417.0,0.053383]
[1733247477386,0.002,95418.0,95417.0,0.207063]
[1733247477601,0.054382,95418.0,95417.0,0.15468]
[1733247477887,0.054382,95418.0,95417.0,0.15568]
[1733247477888,0.007,95418.0,95417.0,0.15568]
[1733247478081,0.007,95418.0,95417.0,0.208063]
[1733247478678,0.36084,95419.0,95418.0,0.052382]
[1733247479080,0.36084,95419.0,95418.0,0.052422]
[1733247479784,4e-05,95419.0,95418.0,0.052422]
[1733247481394,4e-05,95419.0,95418.0,0.054422]
[1733247482393,4e-05,95419.0,95418.0,0.208102]
[1733247482792,4e-05,95419.0,95418.0,0.209102]
[1733247482990,4e-05,95419.0,95418.0,0.207102]
[1733247483188,4e-05,95419.0,95418.0,0.208102]
[1733247483494,4e-05,95419.0,95418.0,0.15572]
[1733247483889,4e-05,95419.0,95418.0,0.209102]
[1733247485186,4e-05,95419.0,95418.0,0.208102]
[1733247485692,4e-05,95419.0,95418.0,1.708102]
[1733247485896,0.36084,95419.0,95418.0,1.708102]
[1733247486594,0.36084,95419.0,95418.0,1.706102]
[1733247486787,0.36084,95419.0,95418.0,1.707102]
[1733247487188,4e-05,95419.0,95418.0,1.707102]
[1733247488191,0.00012019,95426.0,95425.0,0.052378]
[1733247488386,0.24975931,95449.0,95425.0,0.75712]
[1733247488701,0.2185394,95452.0,95448.0,0.052366]
[1733247488888,0.2185394,95456.0,95448.0,4e-05]
[1733247489083,0.052364,95452.0,95448.0,4e-05]
[1733247489290,0.052364,95452.0,95447.0,0.15368]
[1733247489291,0.052364,95452.0,95450.0,4e-05]
[1733247489490,0.36087396,95451.0,95450.0,4e-05]
[1733247489902,0.36087396,95451.0,95450.0,0.052405]
[1733247490603,0.36087396,95451.0,95450.0,4e-05]
[1733247490801,0.36087396,95451.0,95450.0,0.052405]
[1733247491191,0.36487396,95451.0,95450.0,0.052405]
[1733247491392,0.36587396,95451.0,95450.0,0.052405]
[1733247491589,0.41423796,95451.0,95450.0,4e-05]
[1733247491896,0.41423796,95451.0,95450.0,0.00104]
[1733247491897,0.41823796,95451.0,95450.0,0.00104]
[1733247492489,0.41823796,95451.0,95450.0,0.03095093]
[1733247492699,0.41823796,95451.0,95450.0,0.00104]
[1733247492996,0.52108584,95451.0,95450.0,0.00104]
[1733247493790,0.41823796,95451.0,95450.0,0.00104]
[1733247494393,0.052371,95439.0,95438.0,0.052371]
[1733247494593,0.3608,95439.0,95438.0,0.052371]
[1733247494892,0.36084,95439.0,95438.0,0.08254417]
[1733247495093,0.580097,95439.0,95438.0,0.08254417]
[1733247495292,0.36084,95439.0,95438.0,0.08254417]
[1733247496199,0.36584,95439.0,95438.0,0.08254417]
[1733247496504,0.00504,95439.0,95438.0,0.08254417]
[1733247496888,0.10843488,95439.0,95438.0,0.08254417]
[1733247497197,0.34390381,95439.0,95438.0,0.08254417]
[1733247497500,0.22617341,95439.0,95438.0,0.08254417]
[1733247498000,0.22618788,95439.0,95438.0,0.08254417]
[1733247501205,0.27855888,95439.0,95438.0,0.08254417]
[1733247501698,0.22618788,95439.0,95438.0,0.08254417]
[1733247502301,0.59207787,95439.0,95438.0,0.08254417]
[1733247502502,0.27855888,95439.0,95438.0,0.08254417]
[1733247503202,0.22618788,95439.0,95438.0,0.08254417]
[1733247503407,0.57106506,95439.0,95438.0,0.08254417]
[1733247503701,0.3649479,95439.0,95438.0,0.08254417]
[1733247503899,0.20462126,95439.0,95438.0,0.08254417]
[1733247504808,0.34498121,95439.0,95438.0,0.08254417]
[1733247505007,0.39735221,95439.0,95438.0,0.08254417]
[1733247505309,0.052371,95439.0,95438.0,0.08254417]
[1733247506310,0.052371,95439.0,95438.0,0.052371]
[1733247506517,0.052372,95437.0,95428.0,0.15364]
[1733247506806,0.36136001,95442.0,95432.0,0.052374]
[1733247506807,0.3608,95433.0,95432.0,0.052374]
[1733247507305,0.58040033,95433.0,95432.0,0.052374]
[1733247507503,0.58040033,95433.0,95428.0,0.15364]
[1733247507504,0.25089547,95439.0,95438.0,0.052371]
[1733247507708,0.3608,95442.0,95441.0,0.05237]
[1733247508208,0.61178275,95442.0,95441.0,0.05237]
[1733247508507,0.61178275,95442.0,95438.0,4e-05]
[1733247508508,0.3608,95442.0,95438.0,4e-05]
[1733247508710,0.25101873,95440.0,95438.0,0.02987851]
[1733247508908,0.413169,95442.0,95438.0,4e-05]
[1733247508909,0.25101873,95439.0,95438.0,4e-05]
[1733247509096,0.3608,95442.0,95438.0,4e-05]
[1733247509301,0.3608,95442.0,95440.0,0.05237]
[1733247509302,0.58044443,95442.0,95440.0,0.05237]
[1733247509605,0.58044443,95442.0,95441.0,0.05241]
[1733247509802,0.3608,95442.0,95441.0,0.05241]
[1733247510510,0.58050494,95442.0,95441.0,0.05241]
[1733247510815,0.58150494,95442.0,95441.0,0.05241]
[1733247511005,0.3618,95442.0,95441.0,0.05241]
[1733247511407,0.3618,95442.0,95441.0,0.05341]
[1733247512110,0.72171553,95442.0,95441.0,0.05341]
[1733247512310,0.58264606,95442.0,95441.0,0.05341]
[1733247514702,0.89654877,95442.0,95441.0,0.05341]
[1733247515205,0.58264606,95442.0,95441.0,0.05341]
[1733247515406,0.92790213,95442.0,95441.0,0.05341]
[1733247516006,0.58264606,95442.0,95441.0,0.05341]
[1733247517413,0.10426142,95442.0,95441.0,0.05341]
[1733247517803,0.10390468,95442.0,95441.0,0.05341]
[1733247518015,0.22108959,95442.0,95441.0,0.05341]
[1733247518910,0.22108959,95442.0,95441.0,0.07437398]
[1733247519516,0.31493735,95442.0,95441.0,0.07437398]
[1733247519714,0.43212226,95442.0,95441.0,0.07437398]
[1733247519908,0.35505275,95442.0,95441.0,0.07437398]
[1733247520107,0.001,95442.0,95441.0,0.07437398]
[1733247520303,0.001,95442.0,95441.0,0.22801398]
[1733247521903,0.11865955,95452.0,95451.0,0.052364]
[1733247522104,0.34525607,95484.0,95477.0,0.05235]
[1733247522304,0.34525607,95484.0,95481.0,0.052348]
[1733247522305,0.31393735,95482.0,95481.0,0.052348]
[1733247522507,0.34525607,95484.0,95481.0,0.052348]
[1733247522508,0.67473735,95492.0,95483.0,4e-05]
[1733247522716,0.41823336,95491.0,95487.0,0.052344]
[1733247523005,0.3608,95492.0,95481.0,0.15364]
[1733247523006,0.10429601,95490.0,95481.0,0.15364]
[1733247523215,0.3608,95492.0,95481.0,0.15364]
[1733247523412,4e-05,95482.0,95481.0,0.205988]
[1733247523616,4e-05,95482.0,95481.0,0.052348]
[1733247523914,0.1,95500.0,95498.0,0.052338]
[1733247524210,0.1,95500.0,95498.0,1.70601801]
[1733247524715,0.1,95500.0,95499.0,4.001e-05]
[1733247525218,0.3608,95511.0,95500.0,0.052337]
[1733247525608,0.3608,95511.0,95501.0,4.001e-05]
[1733247525813,0.3608,95511.0,95501.0,0.15364001]
[1733247526315,0.3608,95502.0,95501.0,0.1536]
[1733247526511,0.3608,95502.0,95498.0,0.05208769]
[1733247526715,0.3608,95502.0,95499.0,0.1536]
[1733247527304,0.3608,95502.0,95501.0,0.001]
[1733247528320,0.3608,95502.0,95499.0,0.001]
[1733247528321,0.45719961,95502.0,95499.0,0.001]
[1733247528504,0.09639961,95501.0,95499.0,0.001]
[1733247528710,0.09639961,95501.0,95499.0,0.053337]
[1733247528913,0.3917,95502.0,95501.0,0.052337]
[1733247529115,0.3917,95502.0,95499.0,0.001]
[1733247529821,0.14873221,95501.0,95499.0,0.001]
[1733247530023,0.09643521,95500.0,95498.0,0.03088314]
[1733247530214,0.14873321,95499.0,95494.0,0.05234]
[1733247530416,4e-05,95499.0,95497.0,0.052339]
[1733247530620,0.3608,95501.0,95499.0,0.001]
[1733247530830,0.09640212,95500.0,95499.0,0.001]
[1733247531121,0.09640212,95500.0,95492.0,0.02094765]
[1733247531122,0.09640212,95500.0,95497.0,0.052339]
[1733247531319,0.3608,95501.0,95498.0,0.001]
[1733247531515,0.14874023,95500.0,95498.0,0.001]
[1733247531709,0.052338,95500.0,95498.0,0.001]
[1733247532114,0.052338,95500.0,95498.0,0.053338]
[1733247532813,0.052338,95500.0,95499.0,0.001]
[1733247533319,0.052338,95500.0,95498.0,0.052338]
[1733247533619,0.052338,95500.0,95498.0,0.053338]
[1733247533620,4e-05,95499.0,95498.0,0.053338]
[1733247533819,4e-05,95499.0,95498.0,0.052338]
[1733247534625,4e-05,95499.0,95498.0,0.053338]
[1733247536126,4e-05,95499.0,95491.0,0.052342]
[1733247536127,0.052341,95493.0,95491.0,0.052342]
[1733247536424,0.3608,95501.0,95491.0,0.052342]
[1733247536425,0.39244,95492.0,95491.0,0.052342]
[1733247537319,0.39244,95492.0,95491.0,0.053342]
[1733247538718,0.444782,95492.0,95491.0,0.053342]
[1733247539027,0.39244,95492.0,95481.0,0.15416]
[1733247539215,0.3608,95482.0,95481.0,0.052348]
[1733247539419,0.36084,95482.0,95481.0,0.052348]
[1733247540318,0.36084,95482.0,95481.0,0.08261264]
[1733247541523,0.36284,95482.0,95481.0,0.08261264]
[1733247542225,0.00204,95482.0,95481.0,0.08261264]
[1733247542523,1e-06,95482.0,95481.0,0.23677264]
[1733247542731,0.3608,95501.0,95500.0,0.052337]
[1733247543223,0.3608,95510.0,95509.0,0.052332]
[1733247543722,0.3608,95510.0,95509.0,0.05241201]
[1733247544423,0.3608,95510.0,95509.0,8.001e-05]
[1733247544624,0.413132,95510.0,95509.0,8.001e-05]
[1733247544819,0.414132,95510.0,95509.0,0.00108001]
[1733247545020,0.414132,95510.0,95509.0,0.00208001]
[1733247545218,0.052335,95504.0,95496.0,0.15416]
[1733247545423,0.3608,95499.0,95496.0,0.052339]
[1733247545615,4e-05,95497.0,95496.0,0.052339]
[1733247546529,4e-05,95497.0,95496.0,0.053339]
[1733247547321,0.3608,95520.0,95509.0,0.052332]
[1733247547522,0.3608,95520.0,95515.0,0.052329]
[1733247547830,0.3608,95528.0,95527.0,0.052322]
[1733247548132,0.0321,95533.0,95532.0,0.05232]
[1733247548515,0.0321,95533.0,95532.0,0.05236]
[1733247548720,0.0319,95541.0,95532.0,0.41316]
[1733247548922,0.0319,95541.0,95538.0,0.052316]
[1733247549129,0.0319,95541.0,95540.0,0.052315]
[1733247549519,0.3608,95542.0,95541.0,0.052315]
[1733247549920,0.3608,95542.0,95541.0,0.052355]
[1733247550728,0.3608,95542.0,95541.0,0.053355]
[1733247551030,0.3618,95542.0,95541.0,0.053355]
[1733247552422,0.414114,95542.0,95541.0,0.053355]
[1733247552622,0.414114,95542.0,95541.0,0.00104]
[1733247555627,0.414114,95542.0,95541.0,4e-05]
[1733247555828,0.414114,95542.0,95541.0,0.00104]
[1733247560336,0.413114,95542.0,95541.0,0.053355]
[1733247560522,0.414114,95542.0,95541.0,0.053355]
[1733247560924,0.414114,95542.0,95541.0,0.00104]
[1733247561134,0.413114,95542.0,95541.0,0.00104]
[1733247561340,0.414114,95542.0,95541.0,0.00104]
[1733247562829,0.414114,95542.0,95541.0,0.053355]
[1733247566832,0.414114,95542.0,95541.0,0.00104]
[1733247567739,0.44469984,95542.0,95541.0,0.00104]
[1733247567938,0.414114,95542.0,95541.0,0.00104]
[1733247568442,0.414114,95542.0,95541.0,0.053355]
[1733247568443,0.86005853,95542.0,95541.0,0.053355]
[1733247568626,0.60976912,95542.0,95541.0,0.053355]
[1733247568830,0.50555891,95542.0,95541.0,0.053355]
[1733247569031,0.75584832,95542.0,95541.0,0.053355]
[1733247569232,0.60999395,95542.0,95541.0,0.053355]
[1733247569836,0.60999395,95542.0,95541.0,0.08405559]
[1733247570032,0.50555891,95542.0,95541.0,0.08405559]
[1733247571533,0.00056001,95551.0,95550.0,0.05231]
[1733247571738,0.31393735,95559.0,95558.0,0.052305]
[1733247572039,0.09141091,95559.0,95558.0,0.052345]
[1733247572341,0.09141091,95561.0,95560.0,0.052304]
[1733247572731,0.3608,95564.0,95560.0,0.15348]
[1733247573039,0.3608,95564.0,95563.0,0.052343]
[1733247573938,0.3608,95564.0,95563.0,0.205783]
[1733247574239,0.3618,95564.0,95563.0,0.205783]
[1733247574739,0.3618,95564.0,95563.0,0.052343]
[1733247575039,0.3618,95564.0,95563.0,0.08291968]
[1733247575633,0.413102,95564.0,95563.0,0.08291968]
[1733247575832,0.413102,95564.0,95563.0,0.23635968]
[1733247576240,0.413102,95564.0,95563.0,0.052343]
[1733247576536,0.052313,95547.0,95546.0,0.052312]
[1733247576742,0.51424,95564.0,95546.0,0.052312]
[1733247576931,0.51480001,95564.0,95561.0,0.052304]
[1733247577131,0.566542,95564.0,95563.0,0.052343]
[1733247577331,0.566542,95564.0,95563.0,4e-05]
[1733247579542,0.65829846,95564.0,95563.0,0.00104]
[1733247579737,0.052311,95548.0,95547.0,0.08310781]
[1733247579939,0.052311,95548.0,95547.0,0.052311]
[1733247580642,0.3608,95550.0,95549.0,0.05231]
[1733247580944,0.3608,95550.0,95549.0,0.05235]
[1733247582040,0.41311,95550.0,95549.0,0.05235]
[1733247582238,0.50487684,95550.0,95549.0,0.05235]
[1733247582842,0.50581921,95550.0,95549.0,0.05235]
[1733247583445,0.50582053,95550.0,95549.0,4e-05]
[1733247583942,0.50625645,95550.0,95549.0,4e-05]
[1733247584142,0.50625253,95550.0,95549.0,0.05235]
[1733247584345,0.41411,95550.0,95549.0,0.05235]
[1733247584534,0.001,95550.0,95549.0,0.05235]
[1733247585539,0.05331,95550.0,95549.0,0.05235]
[1733247586447,0.05331,95550.0,95549.0,4e-05]
[1733247587443,0.14532817,95550.0,95549.0,4e-05]
[1733247587636,0.09301817,95550.0,95549.0,0.05235]
[1733247588148,0.14532817,95550.0,95549.0,0.05235]
[1733247588546,0.14543503,95550.0,95549.0,0.05235]
[1733247588844,0.15846992,95550.0,95549.0,4e-05]
[1733247589043,0.33501012,95550.0,95549.0,4e-05]
[1733247589244,0.25059495,95550.0,95549.0,4e-05]
[1733247589843,0.14543503,95550.0,95549.0,4e-05]
[1733247590240,0.14543503,95550.0,95549.0,0.05235]
[1733247591145,0.14543503,95550.0,95549.0,4e-05]
[1733247592446,0.05431,95550.0,95549.0,0.00104]
[1733247592838,0.25045982,95550.0,95549.0,4e-05]
[1733247593045,0.37754297,95550.0,95549.0,0.00104]
[1733247593349,0.25245982,95550.0,95549.0,0.00104]
[1733247593543,0.17939315,95550.0,95549.0,0.00104]
[1733247593751,0.05431,95550.0,95549.0,0.00104]
[1733247594056,0.25345982,95550.0,95549.0,0.00104]
[1733247594352,0.37854297,95550.0,95549.0,0.00104]
[1733247594546,0.14743503,95550.0,95549.0,0.00104]
[1733247594944,0.30590059,95550.0,95549.0,0.00104]
[1733247595149,0.14743503,95550.0,95549.0,0.00104]
[1733247595351,0.09512503,95550.0,95549.0,0.05335]
[1733247595550,0.09412503,95550.0,95549.0,0.05235]
[1733247595749,0.34472912,95550.0,95549.0,1.55235]
[1733247595954,0.09412503,95550.0,95549.0,1.55235]
[1733247596258,0.2505957,95554.0,95550.0,0.05231]
[1733247596457,0.25060932,95560.0,95559.0,0.052305]
[1733247596653,0.30291232,95563.0,95562.0,0.052303]
[1733247597152,0.052303,95563.0,95562.0,0.052343]
[1733247597351,0.052303,95563.0,95562.0,4e-05]
[1733247597563,0.66371232,95563.0,95562.0,4e-05]
[1733247597754,0.66371232,95563.0,95562.0,0.052343]
[1733247597952,0.413103,95563.0,95562.0,0.052343]
[1733247598555,0.413103,95563.0,95562.0,0.08327776]
[1733247598757,0.413103,95563.0,95562.0,0.08427776]
[1733247600555,0.413103,95563.0,95562.0,0.03197476]
[1733247600746,0.413103,95563.0,95562.0,0.08427776]
[1733247600958,0.3608,95563.0,95562.0,0.08427776]
[1733247601165,0.6114732,95563.0,95562.0,0.08427776]
[1733247601455,0.3608,95571.0,95562.0,0.08427776]
[1733247601658,0.10388036,95570.0,95569.0,0.052299]
[1733247602554,0.22666591,95570.0,95569.0,0.085399]
[1733247602861,0.3304814,95570.0,95569.0,0.086399]
[1733247603056,0.22660104,95570.0,95569.0,0.086399]
[1733247603460,0.413092,95582.0,95581.0,0.052293]
[1733247604765,0.413092,95582.0,95581.0,0.053293]
[1733247604955,0.413092,95582.0,95581.0,0.08303714]
[1733247605561,0.413092,95582.0,95581.0,0.08403714]
[1733247605758,0.413092,95582.0,95581.0,0.08303714]
[1733247606559,0.47522125,95582.0,95581.0,0.08303714]
[1733247606762,0.3608,95582.0,95581.0,0.08303714]
[1733247607461,0.413092,95582.0,95581.0,0.08303714]
[1733247608465,0.75745181,95582.0,95581.0,0.08303714]
[1733247608664,0.09682301,95583.0,95581.0,0.03074414]
[1733247608962,0.09685991,95582.0,95581.0,0.08303714]
[1733247609164,0.052289,95588.0,95587.0,0.052289]
[1733247609467,0.052289,95588.0,95587.0,0.205689]
[1733247610054,0.3608,95592.0,95587.0,0.1534]
[1733247610257,0.0302,95596.0,95595.0,0.052285]
[1733247610660,0.1267022,95596.0,95595.0,0.052285]
[1733247610862,0.12670161,95596.0,95595.0,0.052285]
[1733247611063,0.14878661,95596.0,95595.0,0.052285]
[1733247611265,0.09650161,95596.0,95595.0,0.052285]
[1733247612262,0.052283,95599.0,95595.0,0.001]
[1733247612563,0.052284,95598.0,95597.0,0.052284]
[1733247612862,0.09654174,95598.0,95595.0,0.002]
[1733247613065,0.152283,95600.0,95595.0,0.03283177]
[1733247613372,4.001e-05,95596.0,95595.0,0.054285]
[1733247615168,0.05232501,95596.0,95595.0,0.054285]
[1733247615364,0.05232501,95596.0,95595.0,0.053285]
[1733247615570,0.05232501,95596.0,95595.0,0.054285]
[1733247615863,0.05232501,95596.0,95595.0,0.03156397]
[1733247616373,0.05232501,95596.0,95595.0,0.08384897]
[1733247616871,0.05232501,95596.0,95595.0,0.03156397]
[1733247618168,0.14880107,95596.0,95595.0,0.03156397]
[1733247618469,0.26290311,95596.0,95595.0,0.03156397]
[1733247618968,0.26290311,95596.0,95595.0,0.08384897]
[1733247618969,0.14880107,95596.0,95595.0,0.08384897]
[1733247619178,0.39580612,95596.0,95595.0,0.08384897]
[1733247619373,0.09651607,95596.0,95595.0,0.08384897]
[1733247619568,0.34354684,95596.0,95595.0,0.08384897]
[1733247620079,0.09651607,95596.0,95595.0,0.08384897]
[1733247620466,0.34354329,95596.0,95595.0,0.08384897]
[1733247620665,0.21061811,95596.0,95595.0,0.08384897]
[1733247620878,0.3435747,95596.0,95595.0,0.08384897]
[1733247621068,0.09651607,95596.0,95595.0,0.08384897]
[1733247621266,4.001e-05,95596.0,95595.0,0.08384897]
[1733247621573,0.21069584,95596.0,95595.0,0.08384897]
[1733247621771,4.001e-05,95596.0,95595.0,0.08384897]
[1733247621971,0.09651607,95596.0,95595.0,0.08384897]
[1733247622176,0.11421978,95596.0,95595.0,0.08384897]
[1733247622365,0.09651607,95596.0,95595.0,0.08384897]
[1733247622676,0.4401589,95596.0,95595.0,0.08384897]
[1733247622877,0.34368284,95596.0,95595.0,0.08384897]
[1733247623073,0.52545933,95596.0,95595.0,0.08384897]
[1733247623376,0.6396391,95596.0,95595.0,0.08384897]
[1733247623570,0.42898327,95596.0,95595.0,0.08384897]
[1733247623965,0.29599627,95596.0,95595.0,0.08284897]
[1733247624166,4.001e-05,95596.0,95595.0,0.08284897]
[1733247625169,4.001e-05,95596.0,95595.0,0.08184897]
[1733247626073,1e-08,95596.0,95595.0,0.08184897]
[1733247627476,0.0026,95623.0,95609.0,9.998e-05]
[1733247627668,0.0311,95627.0,95611.0,0.3608]
[1733247627868,0.052274,95616.0,95612.0,0.15328]
[1733247628166,0.083368,95627.0,95620.0,0.052272]
[1733247628473,0.3608,95624.0,95613.0,1.50104]
[1733247628669,0.08610914,95623.0,95621.0,0.052271]
[1733247628870,0.41307,95624.0,95621.0,0.052271]
[1733247628871,0.41307,95624.0,95623.0,4e-05]
[1733247629869,0.49947544,95624.0,95623.0,4e-05]
[1733247630070,0.41307,95624.0,95623.0,4e-05]
[1733247630871,0.49955382,95624.0,95623.0,4e-05]
[1733247631088,0.41307,95624.0,95623.0,4e-05]
[1733247631567,0.41307,95624.0,95623.0,0.03009687]
[1733247631773,0.41307,95624.0,95623.0,4e-05]
[1733247631975,0.41307,95624.0,95623.0,0.00104]
[1733247633679,0.41307,95624.0,95604.0,0.05228]
[1733247633680,0.052277,95610.0,95604.0,0.05228]
[1733247633975,0.08616627,95610.0,95609.0,0.05237798]
[1733247634171,0.3608,95613.0,95609.0,9.998e-05]
[1733247634379,0.3608,95613.0,95612.0,0.052276]
[1733247634581,0.413075,95613.0,95612.0,0.052316]
[1733247635173,0.49908963,95613.0,95612.0,0.052316]
[1733247635572,0.49908963,95613.0,95612.0,0.053316]
[1733247636174,0.3608,95613.0,95612.0,0.053316]
[1733247636374,0.413075,95613.0,95612.0,0.00104]
[1733247636683,0.49906251,95613.0,95612.0,0.00104]
[1733247637368,0.49906251,95613.0,95612.0,0.053316]
[1733247637979,0.44678751,95613.0,95612.0,0.053316]
[1733247638180,0.64215738,95613.0,95612.0,0.053316]
[1733247638379,0.8784644,95613.0,95612.0,0.053316]
[1733247638680,0.59710702,95613.0,95612.0,0.053316]
[1733247638885,0.49906251,95613.0,95612.0,0.053316]